fUST/lending_fUST_20241230
["ID","MTS","AMOUNT","RATE_DAILY","PERIOD"]
[347123985,1735512640408,-179.63792449,0.00016437,2]
[347123987,1735512640417,-500.0,0.00016437,2]
[347123989,1735512640426,-9937.38,0.00016437,2]
[347123991,1735512640436,-179.20572647,0.00016437,2]
[347123993,1735512640445,-500.0,0.00016438,2]
[347123995,1735512640455,-500.0,0.00016438,2]
[347123997,1735512640466,-500.0,0.00016438,2]
[347123999,1735512640475,-500.0,0.00016438,2]
[347124001,1735512640484,-500.0,0.00016438,2]
[347124003,1735512640493,-500.0,0.00016438,2]
[347124005,1735512640502,-505.21656243,0.00016438,2]
[347124007,1735512640512,-500.0,0.00016438,2]
[347124009,1735512640521,-190.12426194,0.00016438,2]
[347124011,1735512640531,-500.0,0.00016438,2]
[347124013,1735512640541,-1000.0,0.00016438,4]
[347124015,1735512640550,-1000.0,0.00016438,4]
[347124017,1735512640560,-506.62127031,0.00016438,4]
[347124019,1735512640569,-500.0,0.00016438,2]
[347124021,1735512640578,-500.0,0.00016711,2]
[347124023,1735512640588,-500.0,0.00016711,2]
[347124025,1735512640597,-9937.38,0.00016711,2]
[347124027,1735512640607,-308.03243397,0.00016712,2]
[347124029,1735512640616,-434.09227009,0.00016712,2]
[347124031,1735512640626,-587.0,0.0001677,2]
[347124033,1735512640635,-500.0,0.00016985,2]
[347124035,1735512640644,-500.0,0.00016985,2]
[347124037,1735512640653,-9937.38,0.00016985,2]
[347124039,1735512640663,-500.0,0.00016987,2]
[347124041,1735512640673,-442.13139514,0.00016987,2]
[347124043,1735512640682,-500.0,0.00016987,2]
[347124045,1735512640692,-500.0,0.00016987,2]
[347124047,1735512640701,-500.0,0.00016987,2]
[347124049,1735512640711,-500.0,0.00016987,2]
[347124051,1735512640721,-500.0,0.00016988,2]
[347124053,1735512640731,-500.0,0.00016988,2]
[347124055,1735512640740,-500.0,0.00016988,2]
[347124057,1735512640750,-500.0,0.00017259,2]
[347124059,1735512640760,-500.0,0.00017259,2]
[347124061,1735512640769,-9937.38,0.00017259,2]
[347124063,1735512640778,-434.56,0.00017261,2]
[347124065,1735512640788,-500.0,0.00017261,2]
[347124067,1735512640798,-500.0,0.00017261,2]
[347124070,1735512640808,-500.0,0.00017262,2]
[347124072,1735512640818,-256.9361472,0.00017262,2]
[347124074,1735512640828,-500.0,0.00017533,2]
[347124076,1735512640838,-500.0,0.00017533,2]
[347124078,1735512640847,-9937.38,0.00017533,2]
[347124080,1735512640856,-500.0,0.00017535,2]
[347124082,1735512640866,-500.0,0.00017535,2]
[347124083,1735512640876,-500.0,0.00017807,2]
[347124085,1735512640885,-500.0,0.00017807,2]
[347124087,1735512640894,-9937.38,0.00017807,2]
[347124089,1735512640904,-375.1,0.00017808,4]
[347124091,1735512640913,-500.0,0.00017809,2]
[347124093,1735512640922,-500.0,0.00017809,2]
[347124104,1735512641010,-500.0,0.00018081,2]
[347124106,1735512641021,-500.0,0.00018081,2]
[347124108,1735512641030,-9937.38,0.00018081,2]
[347124110,1735512641039,-500.0,0.00018083,2]
[347124111,1735512641048,-500.0,0.00018083,2]
[347124114,1735512641058,-636.53805068,0.00018175,2]
[347124116,1735512641068,-500.0,0.00018355,2]
[347124118,1735512641078,-500.0,0.00018355,2]
[347124120,1735512641088,-9937.38,0.00018355,2]
[347124122,1735512641097,-500.0,0.00018356,2]
[347124124,1735512641107,-500.0,0.00018357,2]
[347124126,1735512641116,-500.0,0.00018357,2]
[347124128,1735512641126,-823.0,0.00018373,2]
[347124130,1735512641135,-500.0,0.00018629,2]
[347124132,1735512641145,-500.0,0.00018629,2]
[347124134,1735512641154,-9937.38,0.00018629,2]
[347124135,1735512641163,-500.0,0.00018631,2]
[347124138,1735512641172,-500.0,0.00018631,2]
[347124140,1735512641182,-500.0,0.00018903,2]
[347124141,1735512641191,-500.0,0.00018903,2]
[347124143,1735512641201,-9937.38,0.00018903,2]
[347124145,1735512641210,-500.0,0.00018905,2]
[347124148,1735512641219,-500.0,0.00018905,2]
[347124150,1735512641229,-473.57690253,0.00019084,2]
[347124152,1735512641239,-640.92209683,0.00019177,2]
[347124154,1735512641249,-500.0,0.00019177,2]
[347124156,1735512641261,-9937.38,0.00019177,2]
[347124158,1735512641271,-500.0,0.00019178,3]
[347124160,1735512641280,-500.0,0.00019178,3]
[347124162,1735512641289,-301.78802746,0.00019178,3]
[347124164,1735512641299,-500.0,0.00019178,2]
[347124166,1735512641309,-467.84112293,0.00019178,2]
[347124168,1735512641319,-198.839798,0.00019178,2]
[347124169,1735512641328,-1017.592777,0.00019178,11]
[347124171,1735512641342,-500.0,0.00019179,2]
[347124173,1735512641351,-346.77,0.00019179,2]
[347124175,1735512641361,-7583.96786701,0.00019205,2]
[347124178,1735512641371,-5000.0,0.00019205,2]
[347124179,1735512641380,-5000.0,0.00019205,2]
[347124181,1735512641390,-9290.28532474,0.00019222,2]
[347124183,1735512641400,-500.0,0.00019451,2]
[347124186,1735512641409,-9937.38,0.00019451,2]
[347124188,1735512641419,-212.7413024,0.00019452,2]
[347124189,1735512641429,-153.0,0.00019452,2]
[347124192,1735512641439,-408.8045394,0.00019452,2]
[347124194,1735512641449,-153.5094505,0.00019452,2]
[347124196,1735512641459,-500.0,0.00019453,2]
[347124198,1735512641469,-5164.75756255,0.00019576,2]
[347124200,1735512641478,-162.71643322,0.00019699,2]
[347124202,1735512641488,-500.0,0.00019725,2]
[347124204,1735512641498,-9937.38,0.00019725,2]
[347124206,1735512641507,-500.0,0.00019726,2]
[347124208,1735512641516,-361.51497873,0.00019727,2]
[347124210,1735512641525,-517.272,0.0001979,2]
[347124212,1735512641535,-162.71643322,0.00019863,2]
[347124214,1735512641544,-9399.35894743,0.00019913,2]
[347124216,1735512641555,-189.83583876,0.00019973,2]
[347124218,1735512641564,-189.83583876,0.00019973,2]
[347124220,1735512641573,-269.73752714,0.00019973,2]
[347124222,1735512641583,-500.0,0.00019973,2]
[347124224,1735512641592,-500.0,0.00019973,2]
[347124226,1735512641602,-500.0,0.00019973,2]
[347124228,1735512641611,-192.11008553,0.00019973,2]
[347124230,1735512641620,-500.38124228,0.00019973,2]
[347124232,1735512641630,-500.37758831,0.00019973,2]
[347124234,1735512641639,-500.0,0.00019973,2]
[347124236,1735512641648,-500.20018655,0.00019973,2]
[347124238,1735512641657,-162.26794298,0.00019973,2]
[347124240,1735512641666,-500.0,0.00019973,2]
[347124242,1735512641676,-500.0,0.00019973,2]
[347124244,1735512641686,-520.35,0.00019997,2]
[347124246,1735512641695,-500.0,0.00019997,2]
[347124248,1735512641705,-1330.04,0.00019997,2]
[347124250,1735512641715,-179.98077066,0.00019999,2]
[347124252,1735512641724,-160.3462879,0.00019999,2]
[347124254,1735512641733,-178.41043767,0.00019999,2]
[347124256,1735512641743,-500.0,0.00019999,2]
[347124258,1735512641752,-500.0,0.00019999,2]
[347124260,1735512641761,-500.0,0.00019999,2]
[347124262,1735512641770,-500.0,0.00019999,2]
[347124264,1735512641780,-206.1,0.00019999,2]
[347124266,1735512641789,-9937.38,0.00019999,2]
[347124268,1735512641798,-27791.51725068,0.0002,2]
[347124270,1735512641807,-238453.30388197,0.0002,2]
[347124272,1735512641817,-1533.50968125,0.0002,4]
[347124281,1735512641894,-1300.47226199,0.0002,4]
[347124284,1735512641906,-1203944.67807588,0.0002,4]
[347124286,1735512641918,-30646.71342853,0.0002,4]
[347124291,1735512641951,-470.2,0.00016164,2]
[347124293,1735512641963,-376.39,0.00016164,2]
[347124295,1735512641972,-110840.47985576,0.0002,4]
[347124297,1735512641983,-4754.77714989,0.0002,4]
[347124299,1735512641994,-1107.13640295,0.0002,4]
[347124302,1735512642005,-12537.04411185,0.0002,4]
[347124304,1735512642016,-1296.2266425,0.0002,4]
[347124306,1735512642027,-867.05953193,0.0002,4]
[347124308,1735512642038,-4997.5600244,0.0002,4]
[347124310,1735512642049,-22830.0,0.0002,4]
[347124312,1735512642060,-307.22,0.0002,4]
[347124314,1735512642072,-1856.79220046,0.0002,4]
[347124317,1735512642083,-457.5,0.0002,4]
[347124480,1735512643696,-375.481998,0.00014519,2]
[347124484,1735512643720,-124.518002,0.00014519,2]
[347124486,1735512643730,-846.59,0.00016438,2]
[347124488,1735512643739,-846.59,0.00016712,2]
[347124490,1735512643749,-846.59,0.00016986,2]
[347124492,1735512643758,-500.0,0.00019973,2]
[347124494,1735512643767,-173.36732354,0.0002,4]
[347124496,1735512643779,-1441.21458112,0.0002,4]
[347124498,1735512643790,-3984.0,0.0002,4]
[347124500,1735512643802,-56797.7118791,0.0002,4]
[347124502,1735512643815,-442.12338,0.0002,4]
[347124507,1735512643851,-846.59,0.0001726,2]
[347124509,1735512643860,-8949.00998975,0.0002,4]
[347124813,1735512646903,-611.14983595,0.00014519,2]
[347124815,1735512646913,-721.67221484,0.00017533,2]
[347124817,1735512646924,-124.91778516,0.00017533,2]
[347124819,1735512646933,-846.59,0.00017807,2]
[347124821,1735512646942,-846.59,0.00018081,2]
[347124823,1735512646951,-6329.37257674,0.0002,4]
[347124825,1735512646961,-151.0,0.0002,2]
[347124827,1735512646970,-151.0,0.0002,2]
[347124829,1735512646979,-151.0,0.0002,2]
[347124831,1735512646988,-151.0,0.0002,2]
[347124833,1735512646997,-151.0,0.0002,2]
[347124835,1735512647007,-281.3521719,0.0002,2]
[347124837,1735512647016,-162.71643322,0.00020055,2]
[347124839,1735512647025,-569.50751627,0.00020082,2]
[347124841,1735512647034,-1152.0,0.00020129,2]
[347124843,1735512647043,-352.4553754,0.00020137,2]
[347124845,1735512647053,-352.4553754,0.00020137,2]
[347124847,1735512647062,-352.4553754,0.00020137,2]
[347124849,1735512647072,-351.9284962,0.00020137,2]
[347124851,1735512647081,-569.50751627,0.00020164,2]
[347124853,1735512647090,-189.83583876,0.00020219,2]
[347124855,1735512647099,-162.71643322,0.00020219,2]
[347124857,1735512647108,-189.83583876,0.00020219,2]
[347124859,1735512647117,-500.0,0.00020271,2]
[347124861,1735512647126,-520.35,0.00020271,2]
[347124863,1735512647135,-500.0,0.00020271,2]
[347124865,1735512647145,-1330.04,0.00020271,2]
[347124867,1735512647154,-499.0,0.00020273,2]
[347124869,1735512647163,-9937.38,0.00020273,2]
[347124871,1735512647172,-569.50751627,0.00020274,2]
[347124873,1735512647182,-442.1137652,0.00020274,2]
[347124875,1735512647191,-155.0875379,0.00020274,2]
[347124877,1735512647199,-157.0,0.00020286,2]
[347124879,1735512647208,-157.0,0.00020286,2]
[347124881,1735512647217,-158.65,0.00020286,2]
[347124883,1735512647226,-569.50751627,0.00020356,2]
[347124885,1735512647235,-162.71643322,0.00020411,2]
[347124887,1735512647245,-400.0,0.00020447,2]
[347124889,1735512647256,-569.50751627,0.00020466,2]
[347124891,1735512647266,-189.83583876,0.00020493,2]
[347124893,1735512647275,-189.83583876,0.00020493,2]
[347124895,1735512647284,-500.0,0.00020521,2]
[347124897,1735512647295,-1000.0,0.00020521,2]
[347124899,1735512647304,-514.95453011,0.00020521,2]
[347124901,1735512647313,-1000.0,0.00020521,2]
[347124903,1735512647322,-326.46539544,0.00020521,2]
[347124905,1735512647332,-1000.0,0.00020521,2]
[347124907,1735512647342,-500.0,0.00020545,2]
[347124909,1735512647351,-520.35,0.00020545,2]
[347124911,1735512647361,-500.0,0.00020545,2]
[347124913,1735512647370,-1330.04,0.00020545,2]
[347124915,1735512647379,-9937.38,0.00020547,2]
[347124917,1735512647389,-569.50751627,0.00020548,2]
[347124919,1735512647399,-162.71643322,0.00020575,2]
[347124921,1735512647408,-154.0,0.00020589,2]
[347124923,1735512647417,-154.0,0.00020589,2]
[347124925,1735512647426,-154.0,0.00020589,2]
[347124927,1735512647435,-154.0,0.00020589,2]
[347124929,1735512647444,-154.0,0.00020589,2]
[347124931,1735512647453,-154.0,0.00020589,2]
[347124933,1735512647463,-154.0,0.00020589,2]
[347124935,1735512647472,-154.0,0.00020589,2]
[347124937,1735512647482,-154.0,0.00020589,2]
[347124939,1735512647491,-154.0,0.00020589,2]
[347124941,1735512647501,-154.0,0.00020589,2]
[347124943,1735512647511,-154.0,0.00020589,2]
[347124945,1735512647520,-154.0,0.00020589,2]
[347124947,1735512647530,-154.0,0.00020589,2]
[347124949,1735512647539,-154.0,0.00020589,2]
[347124951,1735512647548,-154.0,0.00020589,2]
[347124953,1735512647557,-154.0,0.00020589,2]
[347124955,1735512647566,-154.0,0.00020589,2]
[347124957,1735512647576,-154.0,0.00020589,2]
[347124960,1735512647586,-154.0,0.00020589,2]
[347124970,1735512647669,-154.0,0.00020589,2]
[347124972,1735512647679,-154.0,0.00020589,2]
[347124974,1735512647688,-154.0,0.00020589,2]
[347124976,1735512647697,-154.0,0.00020589,2]
[347124978,1735512647707,-154.0,0.00020589,2]
[347124980,1735512647717,-171.0,0.00020589,2]
[347124982,1735512647726,-159.13,0.00020589,2]
[347124984,1735512647735,-159.0,0.00020589,2]
[347124986,1735512647744,-159.0,0.00020589,2]
[347124988,1735512647753,-159.0,0.00020589,2]
[347124990,1735512647763,-159.0,0.00020589,2]
[347124992,1735512647772,-159.0,0.00020589,2]
[347124994,1735512647781,-207.0,0.00020589,2]
[347124996,1735512647790,-404.6729678,0.00020626,2]
[347124998,1735512647800,-569.50751627,0.00020658,2]
[347125000,1735512647809,-2559.51352498,0.00020687,7]
[347125002,1735512647819,-538.39,0.000207,2]
[347125004,1735512647829,-569.50751627,0.0002074,2]
[347125006,1735512647838,-162.71643322,0.0002074,2]
[347125008,1735512647847,-159.0,0.00020757,2]
[347125010,1735512647856,-159.0,0.00020757,2]
[347125012,1735512647865,-159.0,0.00020757,2]
[347125014,1735512647875,-276.69,0.00020757,2]
[347125016,1735512647884,-238.0,0.0002078,3]
[347125018,1735512647893,-10551.68999907,0.000208,4]
[347125021,1735512647906,-17900.24788656,0.000208,4]
[347125023,1735512647915,-230.954019,0.000208,9]
[347125025,1735512647924,-500.0,0.00020819,2]
[347125027,1735512647933,-520.35,0.00020819,2]
[347125029,1735512647943,-500.0,0.00020819,2]
[347125031,1735512647952,-1330.04,0.00020819,2]
[347125033,1735512647961,-9937.5966,0.00020821,2]
[347125035,1735512647970,-534.0,0.00020827,2]
[347125037,1735512647980,-1218.157,0.00020827,2]
[347125039,1735512647989,-2323.0,0.00020827,2]
[347125041,1735512647999,-244.77764144,0.00020834,2]
[347125043,1735512648008,-30108.04213185,0.00020835,5]
[347125045,1735512648019,-45154.802004,0.00020835,5]
[347125048,1735512648030,-345.964,0.00020835,5]
[347125050,1735512648041,-708.3126624,0.00020835,5]
[347125052,1735512648053,-993.65356846,0.00020835,5]
[347129145,1735513424072,505.0,0.00025,120]
[347129151,1735513730143,-300.0,0.00013698,2]
[347129152,1735513730174,-176.20587211,0.00013699,2]
[347129204,1735513832044,-300.0,0.00013698,2]
[347129206,1735513832054,-13931.07851149,0.00013699,2]
[347129208,1735513832065,-195.3080089,0.00013699,2]
[347129209,1735513832075,-414.38844,0.00013699,2]
[347129210,1735513832084,-1338.80026585,0.00013872,2]
[347129211,1735513832093,-500.0,0.00013972,2]
[347129212,1735513832101,-1282.22,0.00013972,2]
[347129213,1735513832112,-400.0,0.00013973,2]
[347129214,1735513832121,-500.0,0.00014244,2]
[347129215,1735513832130,-500.0,0.00014244,2]
[347129216,1735513832139,-500.0,0.00014244,2]
[347129217,1735513832148,-500.0,0.00014244,2]
[347129218,1735513832157,-504.75108553,0.00014244,2]
[347129219,1735513832166,-502.11764655,0.00014244,2]
[347129220,1735513832175,-503.55708668,0.00014244,2]
[347129221,1735513832184,-444.8936842,0.00014244,2]
[347129222,1735513832193,-505.3142385,0.00014244,2]
[347129223,1735513832202,-501.58592017,0.00014244,2]
[347129224,1735513832211,-502.42701329,0.00014244,2]
[347129225,1735513832221,-505.14597039,0.00014244,2]
[347129226,1735513832231,-503.03156066,0.00014244,2]
[347129227,1735513832240,-2433.35,0.00014244,2]
[347129228,1735513832250,-504.19776558,0.00014244,2]
[347129229,1735513832259,-500.0,0.00014244,2]
[347129230,1735513832269,-501.57398472,0.00014244,2]
[347129231,1735513832278,-505.6889392,0.00014244,2]
[347129232,1735513832287,-500.0,0.00014244,2]
[347129233,1735513832296,-504.17401231,0.00014244,2]
[347129234,1735513832305,-505.02862082,0.00014244,2]
[347129236,1735513832316,-500.0,0.00014245,2]
[347129238,1735513832325,-500.0,0.00014245,2]
[347129239,1735513832336,-500.0,0.00014246,2]
[347129241,1735513832346,-1282.22,0.00014246,2]
[347129243,1735513832355,-250.7935126,0.00014518,2]
[347129245,1735513832365,-500.0,0.00014518,2]
[347129247,1735513832374,-318.58,0.00014518,2]
[347129249,1735513832384,-500.0,0.00014518,2]
[347129250,1735513832393,-500.0,0.00014518,2]
[347129251,1735513832403,-500.0,0.00014518,2]
[347129253,1735513832412,-500.0,0.00014518,2]
[347129255,1735513832421,-500.0,0.00014518,2]
[347129257,1735513832431,-500.0,0.00014518,2]
[347129259,1735513832440,-500.0,0.00014518,2]
[347129261,1735513832449,-508.56608196,0.00014518,2]
[347129263,1735513832459,-506.37409631,0.00014518,2]
[347129265,1735513832468,-2433.35,0.00014518,2]
[347129267,1735513832478,-411.57338529,0.00014518,2]
[347129269,1735513832490,-88.42661471,0.00014518,2]
[347129271,1735513832500,-504.19193009,0.00014518,2]
[347129273,1735513832509,-500.0,0.00014518,2]
[347129275,1735513832519,-500.0,0.00014518,2]
[347129277,1735513832528,-505.53260887,0.00014518,2]
[347129279,1735513832538,-507.06642463,0.00014518,2]
[347129281,1735513832547,-503.98585372,0.00014519,2]
[347129283,1735513832556,-609.98882252,0.00014519,2]
[347129285,1735513832565,-507.4433533,0.00014519,2]
[347129287,1735513832575,-510.28011879,0.00014519,2]
[347129289,1735513832584,-502.55843687,0.00014519,2]
[347129291,1735513832594,-505.11018647,0.00014519,2]
[347129293,1735513832603,-502.44024829,0.00014519,2]
[347129295,1735513832612,-508.28729545,0.00014519,2]
[347129297,1735513832621,-502.5410955,0.00014519,2]
[347129298,1735513832631,-508.17629953,0.00014519,2]
[347129300,1735513832640,-501.10685675,0.00014519,2]
[347129302,1735513832650,-503.81086254,0.00014519,2]
[347129304,1735513832659,-509.68267112,0.00014519,2]
[347129306,1735513832669,-500.0,0.00014519,2]
[347129308,1735513832679,-162.78630853,0.00014519,2]
[347129310,1735513832687,-506.53766045,0.00014519,2]
[347129312,1735513832696,-501.2393322,0.00014519,2]
[347129314,1735513832706,-503.79699481,0.00014519,2]
[347129315,1735513832715,-416.43346546,0.00014519,2]
[347129316,1735513832725,-507.72062285,0.00014519,2]
[347129317,1735513832734,-504.1854169,0.00014519,2]
[347129318,1735513832744,-500.0,0.00014519,2]
[347129319,1735513832753,-500.0,0.00014519,2]
[347129320,1735513832762,-500.0,0.00014519,2]
[347129321,1735513832772,-500.0,0.00014519,2]
[347129322,1735513832781,-500.0,0.00014519,2]
[347129323,1735513832791,-500.0,0.00014519,2]
[347129324,1735513832800,-500.0,0.00014519,2]
[347129325,1735513832809,-500.0,0.00014519,2]
[347129326,1735513832821,-500.0,0.00014519,2]
[347129327,1735513832830,-500.0,0.00014519,2]
[347129328,1735513832841,-500.0,0.00014519,2]
[347129329,1735513832850,-500.0,0.00014519,2]
[347129330,1735513832859,-500.0,0.0001452,2]
[347129331,1735513832868,-1282.22,0.0001452,2]
[347129332,1735513832878,-500.0,0.00014792,2]
[347129333,1735513832888,-500.0,0.00014792,2]
[347129334,1735513832897,-500.0,0.00014792,2]
[347129335,1735513832906,-500.0,0.00014792,2]
[347129336,1735513832916,-500.0,0.00014792,2]
[347129337,1735513832926,-500.0,0.00014792,2]
[347129338,1735513832936,-500.0,0.00014792,2]
[347129339,1735513832946,-2433.35,0.00014792,2]
[347129340,1735513832956,-500.0,0.00014792,2]
[347129341,1735513832966,-500.0,0.00014792,2]
[347129342,1735513832975,-500.0,0.00014793,2]
[347129343,1735513832984,-500.0,0.00014793,2]
[347129344,1735513832994,-500.0,0.00014793,2]
[347129345,1735513833003,-500.0,0.00014794,2]
[347129346,1735513833012,-1282.22,0.00014794,2]
[347129347,1735513833022,-3246.91410092,0.0001499,2]
[347129348,1735513833034,-3246.91410092,0.00014991,2]
[347129349,1735513833044,-3246.91410092,0.00014993,2]
[347129350,1735513833054,-420.0,0.00015011,2]
[347129351,1735513833064,-500.0,0.00015066,2]
[347129352,1735513833073,-500.0,0.00015066,2]
[347129353,1735513833084,-500.0,0.00015066,2]
[347129354,1735513833094,-500.0,0.00015066,2]
[347129355,1735513833104,-500.0,0.00015066,2]
[347129356,1735513833114,-500.0,0.00015066,2]
[347129357,1735513833123,-500.0,0.00015066,2]
[347129358,1735513833133,-2433.35,0.00015066,2]
[347129359,1735513833142,-500.0,0.00015066,2]
[347129360,1735513833151,-500.0,0.00015066,2]
[347129361,1735513833161,-500.0,0.00015067,2]
[347129362,1735513833170,-500.0,0.00015067,2]
[347129363,1735513833179,-500.0,0.00015067,2]
[347129364,1735513833189,-500.0,0.00015067,2]
[347129365,1735513833198,-500.0,0.00015068,2]
[347129366,1735513833208,-1282.22,0.00015068,2]
[347129367,1735513833218,-500.0,0.0001534,2]
[347129368,1735513833228,-500.0,0.0001534,2]
[347129369,1735513833237,-500.0,0.0001534,2]
[347129370,1735513833247,-500.0,0.0001534,2]
[347129371,1735513833256,-500.0,0.0001534,2]
[347129372,1735513833267,-500.0,0.0001534,2]
[347129373,1735513833276,-500.0,0.0001534,2]
[347129374,1735513833286,-2433.35,0.0001534,2]
[347129375,1735513833296,-500.0,0.0001534,2]
[347129376,1735513833306,-500.0,0.00015341,2]
[347129377,1735513833318,-500.0,0.00015341,2]
[347129378,1735513833328,-500.0,0.00015342,2]
[347129379,1735513833338,-1282.22,0.00015342,2]
[347129380,1735513833348,-500.0,0.00015614,2]
[347129381,1735513833358,-500.0,0.00015614,2]
[347129382,1735513833368,-500.0,0.00015614,2]
[347129383,1735513833378,-500.0,0.00015614,2]
[347129384,1735513833388,-500.0,0.00015614,2]
[347129385,1735513833398,-500.0,0.00015614,2]
[347129386,1735513833408,-2433.35,0.00015614,2]
[347129387,1735513833417,-500.0,0.00015614,2]
[347129388,1735513833427,-500.0,0.00015615,2]
[347129389,1735513833437,-500.0,0.00015615,2]
[347129390,1735513833446,-500.0,0.00015615,2]
[347129391,1735513833456,-500.0,0.00015616,2]
[347129392,1735513833466,-1282.22,0.00015616,2]
[347129393,1735513833475,-500.0,0.00015888,2]
[347129394,1735513833486,-164.49463954,0.00015888,2]
[347129395,1735513833495,-500.0,0.00015888,2]
[347129396,1735513833505,-500.0,0.00015888,2]
[347129397,1735513833515,-2433.35,0.00015888,2]
[347129398,1735513833526,-500.0,0.00015888,2]
[347129399,1735513833535,-500.0,0.00015889,2]
[347129400,1735513833545,-500.0,0.00015889,2]
[347129401,1735513833554,-500.0,0.0001589,2]
[347129402,1735513833564,-1282.22,0.0001589,2]
[347129403,1735513833573,-500.0,0.00016162,2]
[347129404,1735513833582,-500.0,0.00016162,2]
[347129405,1735513833593,-500.0,0.00016162,2]
[347129406,1735513833603,-2433.35,0.00016162,2]
[347129407,1735513833613,-500.0,0.00016162,2]
[347129408,1735513833623,-500.0,0.00016163,2]
[347129409,1735513833632,-500.0,0.00016163,2]
[347129410,1735513833642,-500.0,0.00016164,2]
[347129411,1735513833652,-1282.22,0.00016164,2]
[347129412,1735513833661,-500.0,0.00016436,2]
[347129413,1735513833671,-500.0,0.00016436,2]
[347129414,1735513833680,-2433.35,0.00016436,2]
[347129415,1735513833690,-500.0,0.00016436,2]
[347129416,1735513833700,-500.0,0.00016437,2]
[347129417,1735513833710,-500.0,0.00016437,2]
[347129418,1735513833813,-500.0,0.00016438,2]
[347129419,1735513833823,-1282.22,0.00016438,2]
[347129420,1735513833834,-500.0,0.00016438,2]
[347129421,1735513833844,-587.0,0.00016451,2]
[347129422,1735513833854,-185.93,0.0001671,2]
[347129423,1735513833863,-500.0,0.0001671,2]
[347129424,1735513833873,-2433.35,0.0001671,2]
[347129425,1735513833883,-500.0,0.0001671,2]
[347129426,1735513833893,-500.0,0.00016711,2]
[347129427,1735513833902,-541.09,0.00016711,2]
[347129428,1735513833912,-500.0,0.00016712,2]
[347129429,1735513833922,-1282.22,0.00016712,2]
[347129430,1735513833932,-500.0,0.00016984,2]
[347129431,1735513833941,-2433.35,0.00016984,2]
[347129432,1735513833951,-500.0,0.00016984,2]
[347129433,1735513833961,-500.0,0.00016985,2]
[347129434,1735513833971,-500.0,0.00016986,2]
[347129435,1735513833980,-1282.22,0.00016986,2]
[347129436,1735513833990,-500.0,0.00016987,2]
[347129437,1735513834000,-500.0,0.00017258,2]
[347129438,1735513834009,-2433.35,0.00017258,2]
[347129439,1735513834019,-500.0,0.00017258,2]
[347129440,1735513834029,-500.0,0.00017259,2]
[347129441,1735513834042,-500.0,0.0001726,2]
[347129442,1735513834051,-1282.22,0.0001726,2]
[347129443,1735513834062,-500.0,0.00017261,2]
[347129444,1735513834071,-189.189,0.00017288,2]
[347129445,1735513834082,-500.0,0.00017532,2]
[347129446,1735513834092,-2433.35,0.00017532,2]
[347129447,1735513834102,-500.0,0.00017532,2]
[347129448,1735513834112,-500.0,0.00017533,2]
[347129449,1735513834123,-500.0,0.00017533,2]
[347129450,1735513834132,-1282.22,0.00017533,2]
[347129451,1735513834142,-244.52,0.00017535,2]
[347129452,1735513834152,-500.0,0.00017806,2]
[347129453,1735513834162,-2433.35,0.00017806,2]
[347129454,1735513834172,-500.0,0.00017806,2]
[347129455,1735513834182,-500.0,0.00017807,2]
[347129456,1735513834192,-500.0,0.00017807,2]